bitfinex/quotes_SOLUSD_20240716
["timestamp","ask_amount","ask_price","bid_price","bid_amount"]
[1721115889689,16.1849,154.76,154.67,72.67]
[1721115889879,16.1849,154.76,154.68,65.0]
[1721115892283,16.1849,154.76,154.69,10.0]
[1721115892476,16.1849,154.76,154.7,108.23]
[1721115895510,16.1849,154.76,154.67,43.23]
[1721115896911,16.1849,154.76,154.68,20.0]
[1721115897280,16.1849,154.76,154.68,30.0]
[1721115897681,16.1849,154.76,154.68,49.44]
[1721115897893,16.1849,154.76,154.69,45.0]
[1721115898105,16.1849,154.76,154.7,20.0]
[1721115898304,16.1849,154.76,154.71,45.0]
[1721115898488,16.1849,154.76,154.72,20.0]
[1721115898687,16.1849,154.76,154.73,45.0]
[1721115898902,16.1849,154.76,154.74,20.0]
[1721115899088,16.1849,154.76,154.75,45.0]
[1721115901191,16.1849,154.76,154.74,20.0]
[1721115901487,16.1849,154.76,154.68,20.0]
[1721115901811,17.8004895,154.76,154.64,53.23]
[1721115902311,17.8004895,154.76,154.64,43.23]
[1721115903107,1.61587379,154.75,154.65,10.0]
[1721115903296,16.1849,154.76,154.67,72.67]
[1721115903507,16.1849,154.76,154.68,20.0]
[1721115904006,16.1849,154.76,154.69,45.0]
[1721115904209,16.1849,154.76,154.7,20.0]
[1721115904538,16.1849,154.76,154.71,45.0]
[1721115904690,6.1861,154.78,154.72,30.0]
[1721115904890,6.3254,154.83,154.74,29.44]
[1721115905091,6.3254,154.83,154.75,39.44]
[1721115905392,6.3254,154.83,154.76,45.0]
[1721115905590,6.3254,154.83,154.77,20.0]
[1721115905811,6.3254,154.83,154.78,45.0]
[1721115906022,6.3254,154.83,154.79,20.0]
[1721115906198,6.3254,154.83,154.8,45.0]
[1721115906524,6.3254,154.83,154.81,20.0]
[1721115906729,6.3254,154.83,154.82,45.0]
[1721115908399,15.9596,154.85,154.82,45.0]
[1721115908616,15.9596,154.85,154.83,20.0]
[1721115908814,6.5107,154.87,154.84,45.0]
[1721115909004,6.5107,154.87,154.85,20.0]
[1721115909205,6.5107,154.87,154.86,45.0]
[1721115909607,6.5107,154.87,154.79,62.67]
[1721115909608,6.5107,154.87,154.79,43.23]
[1721115909812,6.5107,154.87,154.8,65.0]
[1721115911335,16.3035,154.89,154.81,10.0]
[1721115911502,16.3035,154.89,154.82,108.23]
[1721115912406,6.288,154.92,154.82,108.23]
[1721115912730,6.288,154.92,154.82,127.67]
[1721115912909,7.90184309,154.92,154.82,127.67]
[1721115913108,7.90184309,154.92,154.82,20.0]
[1721115913300,7.90184309,154.92,154.76,10.0]
[1721115913820,6.4623,154.88,154.74,10.0]
[1721115914134,1.61474003,154.87,154.76,29.44]
[1721115914308,1.61474003,154.87,154.74,10.0]
[1721115914709,15.9086,154.86,154.74,10.0]
[1721115915034,6.262,154.84,154.7,53.23]
[1721115915213,15.442,154.8,154.7,43.23]
[1721115915401,6.262,154.78,154.69,6.71272133]
[1721115915601,1.61539141,154.77,154.66,43.23]
[1721115915835,1.61539141,154.77,154.66,53.23]
[1721115916029,1.6154947,154.76,154.67,6.71304574]
[1721115916631,1.6154947,154.76,154.63,43.23]
[1721115917128,1.61584516,154.77,154.65,16.4604]
[1721115917425,1.61569989,154.76,154.65,16.4604]
[1721115918005,1.61569989,154.76,154.65,35.9004]
[1721115918334,1.61567266,154.77,154.66,62.67]
[1721115918537,6.262,154.78,154.65,16.4604]
[1721115918538,1.61598547,154.76,154.65,6.4604]
[1721115918711,22.42,154.74,154.61,43.23]
[1721115918901,8.07910733,154.73,154.61,43.23]
[1721115919101,1.61620733,154.73,154.61,43.23]
[1721115919931,1.61620733,154.73,154.62,29.44]
[1721115920139,22.42,154.74,154.62,49.44]
[1721115920320,22.42,154.74,154.65,10.0]
[1721115920522,22.42,154.74,154.66,65.0]
[1721115920924,22.42,154.74,154.66,84.44]
[1721115921138,22.42,154.74,154.67,43.23]
[1721115921443,22.42,154.74,154.68,65.0]
[1721115922908,6.5748,154.74,154.68,65.0]
[1721115923536,1.61552475,154.77,154.7,10.0]
[1721115923720,22.2205,154.78,154.71,65.0]
[1721115924446,6.6307,154.78,154.73,43.23]
[1721115924642,6.6307,154.78,154.74,65.0]
[1721115926921,1.61530016,154.77,154.67,43.23]
[1721115927426,16.5813,154.76,154.67,43.23]
[1721115927738,16.5813,154.76,154.64,386.0]
[1721115927739,1.61555027,154.75,154.64,43.23]
[1721115927940,16.5813,154.76,154.67,10.0]
[1721115928117,18.19684792,154.76,154.67,10.0]
[1721115928317,16.5813,154.76,154.67,10.0]
[1721115928518,16.5813,154.76,154.65,29.44]
[1721115928729,1.61558862,154.75,154.65,29.44]
[1721115929115,16.5813,154.76,154.66,45.0]
[1721115929422,16.5813,154.76,154.67,43.23]
[1721115929628,18.19694973,154.76,154.68,45.0]
[1721115929840,16.5813,154.76,154.68,45.0]
[1721115930017,16.5813,154.76,154.69,20.0]
[1721115930213,1.61549678,154.75,154.7,45.0]
[1721115931029,16.5813,154.76,154.7,45.0]
[1721115932221,18.1967976,154.76,154.7,45.0]
[1721115932543,18.1967976,154.76,154.69,20.0]
[1721115932750,18.1967976,154.76,154.64,43.23]
[1721115932751,18.8467976,154.76,154.64,43.23]
[1721115932919,25.3083976,154.76,154.64,43.23]
[1721115933436,6.4628,154.74,154.61,43.23]
[1721115933646,24.7006097,154.73,154.61,43.23]
[1721115933941,6.3738,154.72,154.62,10.0]
[1721115934125,7.98975806,154.72,154.61,43.23]
[1721115934644,7.98980974,154.72,154.62,29.44]
[1721115935057,7.98980974,154.72,154.63,65.0]
[1721115935532,7.98978439,154.72,154.63,65.0]
[1721115935728,6.3738,154.72,154.63,84.44]
[1721115936327,6.3738,154.72,154.64,72.67]
[1721115936522,6.3738,154.72,154.65,65.0]
[1721115937025,6.3738,154.72,154.67,62.67]
[1721115937227,6.3738,154.72,154.68,65.0]
[1721115938033,16.6215,154.73,154.68,75.0]
[1721115938238,16.6215,154.73,154.68,65.0]
[1721115942051,16.6215,154.73,154.68,20.0]
[1721115942259,16.6215,154.73,154.62,19.44]
[1721115942260,1.61583447,154.72,154.62,19.44]
[1721115942551,16.6215,154.73,154.65,43.23]
[1721115942758,16.6215,154.73,154.67,10.0]
[1721115943235,16.6215,154.73,154.68,43.23]
[1721115943635,16.6215,154.73,154.69,65.0]
[1721115943844,6.1708,154.75,154.69,65.0]
[1721115944864,6.1708,154.75,154.69,20.0]
[1721115944865,1.61551935,154.74,154.69,20.0]
[1721115945336,6.1708,154.75,154.67,10.0]
[1721115945536,6.1708,154.75,154.68,20.0]
[1721115946154,6.1708,154.75,154.66,19.44]
[1721115946155,6.1708,154.75,154.69,45.0]
[1721115946352,6.1708,154.75,154.7,20.0]
[1721115946547,6.1708,154.75,154.71,45.0]
[1721115946864,6.1708,154.75,154.72,20.0]
[1721115947085,6.1708,154.75,154.73,45.0]
[1721115952478,1.61562858,154.74,154.63,6.70875857]
[1721115952780,15.8336,154.73,154.61,43.23]
[1721115952968,1.61623989,154.72,154.61,49.9367246]
[1721115953140,6.6457,154.71,154.62,6.1708]
[1721115953348,1.6163896,154.7,154.62,6.1708]
[1721115953565,1.6163896,154.7,154.6,43.23]
[1721115954449,15.6766,154.69,154.6,43.23]
[1721115954650,1.61642341,154.68,154.6,43.23]
[1721115954949,1.61642341,154.68,154.61,45.0]
[1721115955152,15.6766,154.69,154.61,45.0]
[1721115956260,15.6766,154.69,154.62,30.0]
[1721115956474,15.6766,154.69,154.63,45.0]
[1721115958553,7.61786258,154.68,154.59,13.35310091]
[1721115958751,7.61786258,154.68,154.59,6.70740091]
[1721115960072,7.61786258,154.68,154.6,45.0]
[1721115960772,6.0017,154.68,154.6,74.44]
[1721115960963,6.0017,154.68,154.62,72.67]
[1721115961168,6.0017,154.68,154.63,65.0]
[1721115962273,1.61621288,154.67,154.59,49.93740091]
[1721115962446,1.61642035,154.67,154.59,49.93740091]
[1721115962852,1.61642035,154.67,154.56,53.23]
[1721115963278,1.61642035,154.67,154.56,43.23]
[1721115963877,1.61642035,154.67,154.57,19.44]
[1721115964181,1.61642035,154.67,154.57,6.70532191]
[1721115964472,1.61642035,154.67,154.58,20.0]
[1721115964676,1.61642035,154.67,154.57,26.14532191]
[1721115964853,1.61642035,154.67,154.58,45.0]
[1721115965259,1.61642035,154.67,154.57,45.0]
[1721115965686,1.61642035,154.67,154.56,43.23]
[1721115966170,1.61642035,154.67,154.57,10.0]
[1721115966792,1.61642035,154.67,154.56,69.37511574]
[1721115966963,8.08212035,154.67,154.57,65.0]
[1721115967161,6.4672,154.63,154.53,0.7943647]
[1721115967364,1.61744436,154.62,154.53,0.7943647]
[1721115968246,6.5014,154.64,154.53,0.7943647]
[1721115968247,1.61712024,154.63,154.53,0.7943647]
[1721115969064,6.5014,154.64,154.54,72.67]
[1721115969273,6.5014,154.64,154.58,10.0]
[1721115969487,6.5014,154.64,154.59,65.0]
[1721115969788,6.5014,154.64,154.59,20.0]
[1721115969962,6.5014,154.64,154.54,10.0]
[1721115969963,6.5014,154.64,154.55,63.23]
[1721115970158,6.5014,154.64,154.55,20.0]
[1721115970355,6.5014,154.64,154.56,45.0]
[1721115970356,8.11816612,154.64,154.56,45.0]
[1721115970554,8.11816612,154.64,154.55,45.0]
[1721115971264,14.58476612,154.64,154.55,45.0]
[1721115971774,8.11816612,154.64,154.53,0.7943647]
[1721115971983,14.58516612,154.64,154.53,0.7943647]
[1721115972160,6.467,154.63,154.53,0.7943647]
[1721115972483,8.08481633,154.62,154.53,0.7943647]
[1721115972667,53.08481633,154.62,154.53,0.7943647]
[1721115972858,1.61741633,154.62,154.53,0.7943647]
[1721115973257,6.5014,154.64,154.53,0.7943647]
[1721115973258,1.61730555,154.63,154.53,0.7943647]
[1721115974395,1.61730555,154.63,154.53,63.4643647]
[1721115974588,1.61730555,154.63,154.54,65.0]
[1721115975894,6.5014,154.64,154.54,75.0]
[1721115976275,6.5014,154.64,154.56,10.0]
[1721115976477,6.5014,154.64,154.57,45.0]
[1721115976869,6.5014,154.64,154.58,20.0]
[1721115977070,6.5014,154.64,154.59,45.0]
[1721115978179,6.5014,154.64,154.58,20.0]
[1721115978180,8.11811304,154.64,154.58,20.0]
[1721115978380,8.11811304,154.64,154.56,20.0]
[1721115978695,8.11811304,154.64,154.57,45.0]
[1721115978889,6.5014,154.64,154.58,20.0]
[1721115979192,6.5014,154.64,154.59,45.0]
[1721115980796,8.11835578,154.64,154.58,20.0]
[1721115980995,8.11835578,154.64,154.54,20.0]
[1721115981204,14.58505578,154.64,154.54,20.0]
[1721115981382,14.58505578,154.64,154.53,0.7943647]
[1721115982084,8.11835578,154.64,154.53,0.7943647]
[1721115983783,8.11835578,154.64,154.53,45.7943647]
[1721115983991,8.11835578,154.64,154.54,20.0]
[1721115984204,8.11835578,154.64,154.55,45.0]
[1721115985693,6.5014,154.64,154.55,74.44]
[1721115985874,6.5014,154.64,154.56,20.0]
[1721115986085,6.5014,154.64,154.57,55.0]
[1721115986284,6.1061,154.68,154.58,20.0]
[1721115986583,1.6165529,154.67,154.59,45.0]
[1721115986784,7.72263007,154.68,154.59,45.0]
[1721115987113,7.72260733,154.68,154.59,45.0]
[1721115987801,1.61644857,154.67,154.59,45.0]
[1721115988580,1.61644857,154.67,154.58,20.0]
[1721115988808,1.61644857,154.67,154.57,20.0]
[1721115989401,6.4657,154.66,154.53,60.70834569]
[1721115989577,1.61698215,154.65,154.53,17.47834569]
[1721115989778,1.61698215,154.65,154.53,7.47834569]
[1721115990210,22.3695,154.64,154.53,7.47834569]
[1721115990380,22.3695,154.64,154.55,10.0]
[1721115990578,22.3695,154.64,154.54,19.44]
[1721115990814,1.6168143,154.63,154.53,17.47834569]
[1721115990978,22.3695,154.64,154.55,10.0]
[1721115991405,22.3695,154.64,154.53,17.47834569]
[1721115991603,22.3695,154.64,154.54,45.0]
[1721115991789,6.2549,154.64,154.57,29.44]
[1721115992129,21.573,154.68,154.59,72.67]
[1721115992278,21.573,154.68,154.6,65.0]
[1721115992688,21.573,154.68,154.62,10.0]
[1721115992883,6.0338,154.72,154.63,82.67]
[1721115993118,6.0338,154.72,154.64,45.0]
[1721115993287,6.0338,154.72,154.65,20.0]
[1721115993481,6.0338,154.72,154.66,45.0]
[1721115994792,7.64970172,154.72,154.66,45.0]
[1721115995014,7.64970172,154.72,154.65,20.0]
[1721115995181,7.64970172,154.72,154.63,43.23]
[1721115995182,7.64970172,154.72,154.64,20.0]
[1721115995699,7.64970172,154.72,154.65,45.0]
[1721115996080,7.64970172,154.72,154.61,20.0]
[1721115996081,14.11300172,154.72,154.61,20.0]
[1721115996300,6.4643,154.7,154.6,43.23]
[1721115996512,15.0935,154.67,154.54,10.0]
[1721115996682,1.61685933,154.66,154.56,29.44]
[1721115997083,1.61685933,154.66,154.54,10.0]
[1721115997797,1.61685933,154.66,154.56,10.0]
[1721115998489,1.61685933,154.66,154.54,29.44]
[1721115999189,1.61685933,154.66,154.55,39.44]
[1721115999681,16.710141,154.67,154.56,10.0]
[1721115999886,16.710141,154.67,154.57,65.0]
[1721116004196,16.710141,154.67,154.57,45.0]
[1721116004398,23.175541,154.67,154.57,45.0]
[1721116004794,16.710141,154.67,154.57,45.0]
[1721116006197,6.4659,154.66,154.57,45.0]
[1721116006505,1.61694813,154.65,154.57,45.0]
[1721116006812,1.61694808,154.64,154.53,50.71077892]
[1721116007021,15.125,154.62,154.53,0.7943647]
[1721116007188,1.6173492,154.61,154.53,0.7943647]
[1721116007384,6.5531,154.6,154.53,0.7943647]
[1721116007611,1.61758943,154.59,154.53,0.7943647]
[1721116007917,15.7208,154.58,154.53,0.7943647]
[1721116008125,1.61779372,154.57,154.53,0.7943647]
[1721116009220,1.61779372,154.57,154.43,79.36440437]
[1721116009221,6.1373,154.56,154.43,79.36440437]
[1721116009388,1.61799584,154.55,154.43,79.36440437]
[1721116009592,1.61799561,154.54,154.43,79.36440437]
[1721116010593,1.6180322,154.55,154.44,20.0]
[1721116010928,1.61803482,154.54,154.43,49.92440437]
[1721116011131,1.61803482,154.54,154.43,6.69440437]
[1721116011346,6.1203,154.52,154.4,45.23]
[1721116011502,1.61835779,154.51,154.4,51.92526027]
[1721116011822,1.61835779,154.51,154.4,45.23]
[1721116013019,1.61835779,154.51,154.4,2.0]
[1721116013605,21.5981,154.47,154.4,2.0]
[1721116013805,1.61886908,154.46,154.4,2.0]
[1721116014013,1.61899735,154.45,154.4,2.0]
[1721116014327,21.5981,154.47,154.4,2.0]
[1721116014328,1.61892749,154.46,154.4,2.0]
[1721116014645,1.61856072,154.46,154.4,2.0]
[1721116015195,1.61873663,154.45,154.4,2.0]
[1721116016122,6.216,154.44,154.38,0.7943647]
[1721116016324,1.6194527,154.43,154.38,0.7943647]
[1721116016529,1.6194527,154.43,154.26,53.23]
[1721116016530,8.78455753,154.42,154.26,53.23]
[1721116016826,8.78455753,154.42,154.23,283.1502]
[1721116016827,8.78455753,154.42,154.29,10.0]
[1721116017037,8.78455753,154.42,154.29,43.23]
[1721116017321,8.78455753,154.42,154.27,6.67379679]
[1721116017322,6.5489,154.41,154.27,6.67379679]
[1721116017532,21.61987781,154.4,154.27,6.67379679]
[1721116017822,1.61976989,154.39,154.27,59.90379679]
[1721116018028,1.61976989,154.39,154.3,43.23]
[1721116018219,1.61951233,154.4,154.3,43.23]
[1721116018610,1.61937315,154.39,154.3,43.23]
[1721116018916,1.61937315,154.39,154.31,45.0]
[1721116019727,1.61980745,154.4,154.31,45.0]
[1721116020026,8.16826873,154.41,154.31,45.0]
[1721116020223,1.6194225,154.4,154.31,45.0]
[1721116020426,6.5489,154.41,154.32,30.0]
[1721116020601,6.5489,154.41,154.33,45.0]
[1721116020801,8.16814562,154.41,154.34,20.0]
[1721116021029,8.16814562,154.41,154.35,45.0]
[1721116021241,8.16814562,154.41,154.26,10.0]
[1721116021425,8.16814562,154.41,154.24,6.0529]
[1721116021426,8.16814562,154.41,154.29,10.0]
[1721116021922,8.16814562,154.41,154.31,10.0]
[1721116022105,6.5489,154.41,154.31,72.67]
[1721116022427,6.5489,154.41,154.35,10.0]
[1721116022598,6.6516,154.45,154.36,45.0]
[1721116022796,8.27039334,154.45,154.37,20.0]
[1721116023028,8.27039334,154.45,154.38,45.0]
[1721116024311,6.6516,154.45,154.39,20.0]
[1721116024516,6.6516,154.45,154.4,45.0]
[1721116024724,6.6516,154.45,154.41,20.0]
[1721116024927,6.6516,154.45,154.42,45.0]
[1721116025425,6.5512,154.49,154.42,45.0]
[1721116025632,8.16949007,154.49,154.43,20.0]
[1721116025820,8.16963042,154.49,154.44,45.0]
[1721116026028,6.5512,154.49,154.44,45.0]
[1721116026317,1.61828836,154.48,154.44,45.0]
[1721116026517,8.16982402,154.49,154.45,45.0]
[1721116026708,8.1695468,154.49,154.44,45.0]
[1721116026911,6.5512,154.49,154.44,45.0]
[1721116027604,6.5512,154.49,154.45,20.0]
[1721116027795,6.5512,154.49,154.46,45.0]
[1721116028010,6.5512,154.49,154.47,20.0]
[1721116028438,6.5512,154.49,154.48,45.0]
[1721116028605,6.5512,154.49,154.47,20.0]
[1721116028934,6.5512,154.49,154.41,39.44]
[1721116029136,6.5512,154.49,154.42,45.0]
[1721116029345,6.5512,154.49,154.43,20.0]
[1721116029657,6.5512,154.49,154.44,45.0]
[1721116029808,6.5512,154.49,154.45,20.0]
[1721116030139,1.61813144,154.54,154.46,45.0]
[1721116030431,6.1848,154.53,154.47,20.0]
[1721116030630,1.61802242,154.52,154.48,45.0]
[1721116030831,6.1848,154.53,154.48,45.0]
[1721116031204,1.61802177,154.52,154.48,45.0]
[1721116031405,6.1848,154.53,154.48,45.0]
[1721116031626,1.61802768,154.52,154.48,45.0]
[1721116031816,6.1848,154.53,154.48,45.0]
[1721116032025,6.1848,154.53,154.49,20.0]
[1721116032336,15.971,154.55,154.5,45.0]
[1721116032504,15.971,154.55,154.51,20.0]
[1721116032700,15.971,154.55,154.52,45.0]
[1721116033137,6.4021,154.57,154.53,20.0]
[1721116033337,6.4021,154.57,154.54,45.0]
[1721116033512,6.4021,154.57,154.55,20.0]
[1721116034112,6.4021,154.57,154.49,43.23]
[1721116034332,6.4021,154.57,154.5,65.0]
[1721116035443,1.617526,154.56,154.5,65.0]
[1721116035674,1.617526,154.56,154.44,43.23]
[1721116035945,6.4704,154.55,154.41,260.5]
[1721116036108,1.61826842,154.54,154.41,270.5]
[1721116036316,1.61826842,154.54,154.43,10.0]
[1721116036731,1.61826842,154.54,154.42,10.0]
[1721116036919,1.61805699,154.56,154.44,29.44]
[1721116037433,1.61805699,154.56,154.41,260.5]
[1721116037434,1.61805699,154.56,154.45,20.0]
[1721116037737,22.8507,154.55,154.41,260.5]
[1721116038044,1.618204,154.54,154.42,45.0]
[1721116038750,8.089004,154.54,154.41,260.5]
[1721116039051,6.0112,154.53,154.41,260.5]
[1721116039210,1.61829185,154.52,154.41,260.5]
[1721116039410,1.61844758,154.51,154.41,260.5]
[1721116039807,6.0112,154.53,154.41,289.94]
[1721116040130,6.0112,154.53,154.42,64.44]
[1721116040321,1.61801796,154.52,154.42,45.0]
[1721116041151,1.61801796,154.52,154.43,20.0]
[1721116041376,1.61801796,154.52,154.4,429.23]
[1721116041644,1.61801796,154.52,154.4,43.23]
[1721116041840,15.7809,154.51,154.4,43.23]
[1721116042040,1.61851106,154.5,154.4,43.23]
[1721116042244,6.5576,154.49,154.36,6.69384185]
[1721116042548,1.61864516,154.48,154.36,59.92384185]
[1721116042920,1.61864516,154.48,154.39,43.23]
[1721116043610,1.61864516,154.48,154.4,45.0]
[1721116044244,1.61864516,154.48,154.41,20.0]
[1721116044755,1.61864516,154.48,154.36,49.92384185]
[1721116044930,8.09194516,154.48,154.33,19.44]
[1721116045132,6.162,154.46,154.32,53.23]
[1721116045337,1.61917016,154.45,154.32,53.23]
[1721116045517,1.61917016,154.45,154.32,43.23]
[1721116045518,6.162,154.44,154.32,43.23]
[1721116045716,1.61937366,154.43,154.33,10.0]
[1721116045929,6.162,154.44,154.33,16.68902348]
[1721116046146,6.162,154.44,154.35,53.23]
[1721116046319,6.162,154.44,154.35,43.23]
[1721116046842,1.61892877,154.43,154.35,43.23]
[1721116047036,1.61892877,154.43,154.32,43.23]
[1721116047223,15.9565,154.42,154.32,43.23]
[1721116047419,1.61962135,154.41,154.29,43.23]
[1721116047635,6.1272,154.4,154.29,43.23]
[1721116047835,1.61969669,154.39,154.29,43.23]
[1721116048240,7.74682912,154.4,154.29,79.36183308]
[1721116048562,6.1272,154.4,154.31,29.44]
[1721116048722,6.1272,154.4,154.32,88.23]
[1721116049049,6.1272,154.4,154.33,20.0]
[1721116049240,6.1272,154.4,154.34,45.0]
[1721116049434,6.1272,154.4,154.35,20.0]
[1721116049678,6.1272,154.4,154.36,45.0]
[1721116049953,15.9565,154.42,154.37,20.0]
[1721116050115,15.9565,154.42,154.38,45.0]
[1721116050645,6.0738,154.44,154.38,45.0]
[1721116050944,6.0738,154.44,154.39,20.0]
[1721116051247,6.0738,154.44,154.4,45.0]
[1721116051452,16.647,154.46,154.41,20.0]
[1721116051625,16.647,154.46,154.42,45.0]
[1721116052321,6.6352,154.48,154.42,45.0]
[1721116052517,6.6352,154.48,154.43,65.0]
[1721116053218,16.4224,154.51,154.45,43.23]
[1721116053445,16.4224,154.51,154.46,65.0]
[1721116054736,16.4224,154.55,154.47,19.44]
[1721116054956,6.1825,154.56,154.48,118.23]
[1721116055243,6.1825,154.56,154.48,108.23]
[1721116055647,6.1825,154.56,154.5,10.0]
[1721116055821,6.1825,154.56,154.51,65.0]
[1721116056046,6.1825,154.56,154.52,20.0]
[1721116056250,6.1825,154.56,154.53,45.0]
[1721116056553,6.1825,154.56,154.54,20.0]
[1721116057057,6.1825,154.56,154.49,39.44]
[1721116057266,6.1825,154.56,154.5,45.0]
[1721116057440,6.1825,154.56,154.51,20.0]
[1721116057635,6.58,154.61,154.52,45.0]
[1721116057838,1.61727612,154.6,154.53,20.0]
[1721116058076,1.61727612,154.6,154.54,45.0]
[1721116058375,6.58,154.61,154.54,45.0]
[1721116058662,6.58,154.61,154.55,20.0]
[1721116058870,6.58,154.61,154.56,45.0]
[1721116059692,6.58,154.61,154.55,20.0]
[1721116059857,6.58,154.61,154.56,45.0]
[1721116059858,1.61723848,154.6,154.56,45.0]
[1721116060166,6.58,154.61,154.56,45.0]
[1721116060476,1.61723848,154.64,154.56,45.0]
[1721116061375,1.61723848,154.64,154.57,20.0]
[1721116062276,6.4674,154.63,154.49,15.4574]
[1721116062442,1.61750012,154.62,154.49,15.4574]
[1721116062648,1.61750012,154.62,154.5,10.0]
[1721116063159,1.61750012,154.62,154.51,62.67]
[1721116063353,1.61715376,154.63,154.51,62.67]
[1721116063564,1.61715376,154.63,154.52,74.44]
[1721116063749,1.61715376,154.63,154.53,20.0]
[1721116063949,1.61715376,154.63,154.54,45.0]
[1721116064149,1.61715376,154.63,154.55,20.0]
[1721116064382,8.08425376,154.63,154.55,20.0]
[1721116064891,19.44,154.59,154.37,16.65749484]
[1721116065062,19.44,154.59,154.39,29.44]
[1721116065063,52.89026677,154.58,154.39,29.44]
[1721116065398,72.89026677,154.58,154.39,29.44]
[1721116065679,72.89026677,154.58,154.42,10.0]
[1721116065848,6.4707,154.55,154.41,62.67]
[1721116066048,1.6181407,154.54,154.41,43.23]
[1721116066272,6.4719,154.52,154.39,19.44]
[1721116066455,8.09075514,154.51,154.38,43.23]
[1721116066657,1.61845514,154.51,154.37,6.65749484]
[1721116066884,6.4729,154.5,154.37,6.65749484]
[1721116067079,1.61875929,154.49,154.37,6.65749484]
[1721116067377,8.17243588,154.48,154.37,6.65749484]
[1721116068155,1.61887642,154.47,154.32,72.67]
[1721116068356,8.09257642,154.47,154.32,72.67]
[1721116068574,1.61887642,154.47,154.32,79.3428255]
[1721116068755,21.61887642,154.47,154.32,79.3428255]
[1721116069274,16.0413,154.46,154.32,6.6728255]
[1721116069450,21.61932851,154.45,154.31,43.23]
[1721116069646,6.4751,154.44,154.31,43.23]
[1721116069875,1.61941795,154.43,154.31,43.23]
[1721116070080,1.61933518,154.44,154.34,10.0]
[1721116070251,16.0413,154.46,154.34,72.67]
[1721116070252,1.61898741,154.45,154.34,72.67]
[1721116070447,1.61898741,154.45,154.34,43.23]
[1721116070683,1.61898741,154.45,154.34,53.23]
[1721116071086,1.61898741,154.45,154.35,45.0]
[1721116071453,6.5536,154.48,154.37,72.67]
[1721116071657,6.5536,154.48,154.39,29.44]
[1721116071991,1.61832413,154.51,154.41,10.0]
[1721116072175,1.61832413,154.51,154.4,62.67]
[1721116072487,1.61832413,154.51,154.41,45.0]
[1721116073557,1.61832413,154.51,154.4,43.23]
[1721116073759,1.61832413,154.51,154.4,53.23]
[1721116074878,1.61832413,154.51,154.4,43.23]
[1721116075061,1.61832413,154.51,154.41,45.0]
[1721116075869,1.61832413,154.51,154.42,20.0]
[1721116076161,1.61832413,154.51,154.43,45.0]
[1721116076860,17.95048718,154.52,154.43,45.0]
[1721116077159,10.0,154.69,154.43,45.0]
[1721116077160,22.496,154.57,154.44,29.44]
[1721116077364,1.61774812,154.56,154.46,53.23]
[1721116077561,1.61774812,154.56,154.47,45.0]
[1721116077768,22.496,154.57,154.47,45.0]
[1721116078164,6.2477,154.57,154.47,64.44]
[1721116079182,6.2477,154.57,154.47,45.0]
[1721116080289,6.2477,154.57,154.47,64.44]
[1721116081671,1.61758757,154.61,154.52,43.23]
[1721116081896,6.67951611,154.65,154.53,74.44]
[1721116081897,1.61755936,154.64,154.53,74.44]